fUST/lending_fUST_20260227
["ID","MTS","AMOUNT","RATE_DAILY","PERIOD"]
[406754537,1772158232659,-250.0,0.00011057,2]
[406754539,1772158232668,-217.15233878,0.00011057,2]
[406754541,1772158232677,-500.0,0.00011057,2]
[406754543,1772158232686,-168.85936365,0.00011057,2]
[406754545,1772158232696,-250.0,0.00011057,2]
[406754547,1772158232705,-250.0,0.00011057,2]
[406754549,1772158232714,-250.0,0.00011057,2]
[406754550,1772158232722,-250.0,0.00011057,2]
[406754551,1772158232731,-250.0,0.00011057,2]
[406754552,1772158232899,-250.0,0.00011057,2]
[406754553,1772158232908,-250.0,0.00011057,2]
[406754554,1772158232917,-250.0,0.00011057,2]
[406754555,1772158232926,-283.71418575,0.00011057,2]
[406754556,1772158232935,-225.18697532,0.00011057,2]
[406754557,1772158232944,-250.0,0.00011057,2]
[406754558,1772158232953,-500.0,0.00011057,2]
[406754559,1772158232963,-250.0,0.00011057,2]
[406754560,1772158232972,-250.0,0.00011057,2]
[406754561,1772158232981,-250.0,0.00011057,2]
[406754562,1772158232990,-233.51889341,0.00011057,2]
[406754563,1772158233000,-500.0,0.00011057,2]
[406754564,1772158233009,-250.0,0.00011057,2]
[406754565,1772158233020,-250.0,0.00011057,2]
[406754566,1772158233029,-250.0,0.00011057,2]
[406754567,1772158233038,-242.15909246,0.00011057,2]
[406754568,1772158233047,-250.0,0.00011057,2]
[406754569,1772158233056,-500.0,0.00011057,2]
[406754570,1772158233065,-250.0,0.00011057,2]
[406754571,1772158233074,-250.0,0.00011057,2]
[406754572,1772158233084,-251.11897888,0.00011057,2]
[406754573,1772158233094,-267.78814148,0.00011057,2]
[406754574,1772158233104,-250.0,0.00011057,2]
[406754575,1772158233113,-500.0,0.00011057,2]
[406754576,1772158233122,-250.0,0.00011057,2]
[406754577,1772158233133,-260.4103811,0.00011057,2]
[406754578,1772158233142,-250.0,0.00011057,2]
[406754579,1772158233152,-500.0,0.00011057,2]
[406754580,1772158233161,-250.0,0.00011057,2]
[406754581,1772158233170,-270.0455652,0.00011057,2]
[406754582,1772158233179,-250.0,0.00011057,2]
[406754583,1772158233189,-500.0,0.00011057,2]
[406754584,1772158233198,-250.0,0.00011057,2]
[406754585,1772158233208,-280.03725112,0.00011057,2]
[406754586,1772158233218,-500.0,0.00011057,2]
[406754587,1772158233227,-250.0,0.00011057,2]
[406754588,1772158233236,-250.0,0.00011057,2]
[406754589,1772158233245,-290.39862941,0.00011057,2]
[406754590,1772158233255,-250.0,0.00011057,2]
[406754591,1772158233264,-500.0,0.00011057,2]
[406754592,1772158233274,-500.0,0.00011057,2]
[406754593,1772158233283,-250.0,0.00011057,2]
[406754594,1772158233292,-301.1433787,0.00011057,2]
[406754595,1772158233302,-250.0,0.00011057,2]
[406754596,1772158233314,-500.0,0.00011057,2]
[406754597,1772158233324,-500.0,0.00011057,2]
[406754598,1772158233333,-250.0,0.00011057,2]
[406754599,1772158233343,-151.0,0.00011063,2]
[406754600,1772158233352,-151.0,0.00011063,2]
[406754601,1772158233361,-151.0,0.00011063,2]
[406754602,1772158233371,-151.0,0.00011063,2]
[406754603,1772158233380,-151.0,0.00011063,2]
[406754604,1772158233389,-151.0,0.00011063,2]
[406754605,1772158233399,-151.0,0.00011063,2]
[406754606,1772158233408,-151.0,0.00011063,2]
[406754607,1772158233417,-151.0,0.00011063,2]
[406754608,1772158233426,-151.0,0.00011063,2]
[406754609,1772158233435,-151.0,0.00011063,2]
[406754610,1772158233443,-151.0,0.00011063,2]
[406754611,1772158233453,-151.0,0.00011063,2]
[406754612,1772158233467,-151.0,0.00011063,2]
[406754613,1772158233475,-153.56803231,0.00011063,2]
[406754614,1772158233484,-750.18029385,0.00011065,2]
[406754615,1772158233493,-250.0,0.00011065,2]
[406754616,1772158233503,-250.0,0.00011065,2]
[406754617,1772158233513,-250.0,0.00011065,2]
[406754618,1772158233523,-250.0,0.00011065,2]
[406754619,1772158233533,-250.0,0.00011065,2]
[406754620,1772158233544,-250.0,0.00011065,2]
[406754621,1772158233553,-250.0,0.00011065,2]
[406754622,1772158233563,-250.0,0.00011065,2]
[406754623,1772158233572,-250.0,0.00011065,2]
[406754624,1772158233582,-250.0,0.00011065,2]
[406754625,1772158233591,-250.0,0.00011065,2]
[406754626,1772158233600,-151.0,0.00011071,2]
[406754627,1772158233609,-153.717098,0.00011071,2]
[406754628,1772158233618,-151.0,0.00011071,2]
[406754629,1772158233628,-151.0,0.00011071,2]
[406754630,1772158233637,-2796.33896539,0.00011072,2]
[406755386,1772158245856,-1113.05095169,0.0001079,2]
[406755387,1772158245866,-428.09856713,0.00010946,2]
[406755388,1772158245913,-1498.43170941,0.00010946,2]
[406755389,1772158245923,-265.26397194,0.00011057,2]
[406755390,1772158245932,-250.0,0.00011057,2]
[406755391,1772158245942,-500.0,0.00011057,2]
[406755392,1772158245954,-500.0,0.00011057,2]
[406755393,1772158245963,-250.0,0.00011057,2]
[406755394,1772158245973,-500.0,0.00011057,2]
[406755395,1772158245982,-500.0,0.00011057,2]
[406755396,1772158245991,-500.0,0.00011057,2]
[406755397,1772158246001,-500.0,0.00011057,2]
[406755398,1772158246010,-107.71371953,0.00011057,2]
[406755446,1772159203129,-298.42025008,0.00010688,2]
[406755447,1772159240227,-1000.0,0.00010581,2]
[406755448,1772159242332,-498.43170941,0.00010581,2]
[406755449,1772159242356,-208.86502186,0.00010742,2]
[406755450,1772159242376,-292.70326873,0.00010796,2]
[406755451,1772159242638,-278.29673127,0.00010796,2]
[406755452,1772159242660,-150.0,0.00010796,2]
[406755453,1772159242683,-150.0,0.00010796,2]
[406755454,1772159242703,-150.0,0.00010851,2]
[406755455,1772159242726,-150.0,0.00010851,2]
[406755456,1772159253973,-200.0,0.00010906,2]
[406755457,1772159253995,-252.12755618,0.00010906,2]
[406755458,1772159283172,-507.4935869,0.00011033,2]
[406755459,1772159283193,-492.5064131,0.00011033,2]
[406755460,1772159284744,-10.23725539,0.00011033,2]
[406755461,1772159284770,-642.1215647,0.00011033,2]
[406755462,1772159284792,-347.64117991,0.00011033,2]
[406755463,1772159285664,-39.28138552,0.00011033,2]
[406755464,1772159285688,-500.0,0.00011033,2]
[406755465,1772159285712,-460.71861448,0.00011033,2]
[406755466,1772159286146,-39.28138552,0.00011033,2]
[406755467,1772159286167,-500.0,0.00011033,2]
[406755468,1772159286188,-409.58405071,0.00011033,2]
[406755469,1772159286211,-51.13456377,0.00011033,2]
[406755470,1772159286606,-448.86543623,0.00011033,2]
[406755471,1772159286632,-500.0,0.00011033,2]
[406755472,1772159286656,-51.13456377,0.00011033,2]
[406755473,1772159287143,-448.86543623,0.00011033,2]
[406755474,1772159287180,-500.0,0.00011033,2]
[406755475,1772159287204,-51.13456377,0.00011033,2]
[406755476,1772159287350,-448.86543623,0.00011033,2]
[406755477,1772159287375,-500.0,0.00011033,2]
[406755478,1772159287400,-51.13456377,0.00011033,2]
[406755479,1772159287692,-448.86543623,0.00011033,2]
[406755480,1772159287713,-500.0,0.00011033,2]
[406755481,1772159287736,-51.13456377,0.00011033,2]
[406755482,1772159288056,-448.86543623,0.00011033,2]
[406755483,1772159288080,-500.0,0.00011033,2]
[406755484,1772159288101,-51.13456377,0.00011033,2]
[406755485,1772159290678,-448.86543623,0.00011033,2]
[406755486,1772159290701,-500.0,0.00011033,2]
[406755487,1772159290723,-51.13456377,0.00011033,2]
[406755488,1772159291403,-448.86543623,0.00011033,2]
[406755489,1772159291424,-500.0,0.00011033,2]
[406755490,1772159291445,-51.13456377,0.00011033,2]
[406755491,1772159292580,-448.86543623,0.00011033,2]
[406755492,1772159292601,-500.0,0.00011033,2]
[406755493,1772159292621,-51.13456377,0.00011033,2]
[406755494,1772159293832,-531.4200388,0.00011033,2]
[406755495,1772159293855,-468.5799612,0.00011033,2]
[406755496,1772159297446,-31.4200388,0.00011033,2]
[406755497,1772159297467,-577.4165728,0.00011033,2]
[406755498,1772159297489,-391.1633884,0.00011033,2]
[406755499,1772159301399,-108.8366116,0.00011033,2]
[406755500,1772159301421,-500.0,0.00011033,2]
[406755501,1772159301443,-391.1633884,0.00011033,2]
[406755502,1772159306782,-108.8366116,0.00011033,2]
[406755503,1772159306809,-91.1633884,0.00011033,2]
[406755504,1772159330227,-5000.0,0.00010923,2]
[406755505,1772159337236,900.0,0.00011,2]
[406755506,1772159424270,-489.56066226,0.0001089,2]
[406755773,1772159440520,-184.10770007,0.0001089,2]
[406755775,1772159440530,-425.72105234,0.0001089,2]
[406755848,1772159441219,-73.27455833,0.0001089,2]
[406756350,1772159446197,-1043.45699513,0.0001,2]
[406756352,1772159446208,-236.74407735,0.0001,2]
[406756354,1772159446217,-74.00438933,0.0001089,2]
[406756356,1772159446227,-210.39452957,0.00010945,2]
[406756358,1772159446236,-4100.0,0.00011,2]
[406756360,1772159446245,-1200.0,0.00011,2]
[406756362,1772159446255,-300.0,0.00011001,2]
[406756364,1772159446264,-300.0,0.00011001,2]
[406756366,1772159446274,-300.0,0.00011001,2]
[406756368,1772159446283,-300.0,0.00011001,2]
[406756370,1772159446293,-300.0,0.00011001,2]
[406756372,1772159446303,-300.26631671,0.00011002,2]
[406756689,1772159940921,-2412.7036845,0.00010047,2]
[406756690,1772159940944,-987.2963155,0.00010675,2]
[406756691,1772159962679,-400.0,0.00010675,2]
[406756726,1772160632076,-4144.13703729,0.0001,2]
[406756728,1772160632085,-5000.0,0.00010253,2]
[406756730,1772160632095,-210.39452957,0.00010589,2]
[406756732,1772160632105,-1200.0,0.00010747,2]
[406756734,1772160632119,-300.0,0.00010748,2]
[406756737,1772160632128,-300.0,0.00010748,2]
[406756740,1772160632138,-300.0,0.00010748,2]
[406756743,1772160632148,-300.0,0.00010748,2]
[406756746,1772160632157,-300.0,0.00010748,2]
[406756749,1772160632166,-207.51000696,0.00010749,2]
[406756752,1772160632176,-150.0,0.00010749,2]
[406756755,1772160632187,-150.0,0.00010749,2]
[406756758,1772160632196,-192.0306553,0.00010753,2]
[406756761,1772160632205,-150.0,0.00010753,2]
[406756763,1772160632214,-150.0,0.00010753,2]
[406756765,1772160632223,-150.0,0.00010804,2]
[406756767,1772160632232,-150.0,0.00010808,2]
[406756769,1772160632241,-150.0,0.00010808,2]
[406756771,1772160632250,-200.0,0.00010859,2]
[406756773,1772160632259,-150.0,0.00010863,2]
[406756775,1772160632268,-150.0,0.00010863,2]
[406756777,1772160632278,-150.0,0.00010917,2]
[406756779,1772160632287,-150.0,0.00010917,2]
[406756781,1772160632295,-300.2663167,0.00010943,2]
[406756782,1772160632305,-260.06914372,0.00010972,2]
[406756784,1772160632314,-211.43786686,0.00010972,2]
[406756786,1772160632323,-2465.77464339,0.00011002,2]
[406756789,1772160632333,-420.39437821,0.00011002,2]
[406756825,1772160638212,-15228.08483851,0.0001,2]
[406757117,1772160643443,-907.08430358,0.0001,2]
[406757260,1772160646193,-3071.0036123,0.0001,2]
[406757261,1772160656133,699.43707856,0.000157,120]
[406757262,1772160656199,300.0,0.00011387,120]
[406757263,1772160657692,300.0,0.00011387,120]
[406757264,1772160659456,300.0,0.00011387,120]
[406757265,1772160661169,300.0,0.00011387,120]
[406757266,1772160662894,300.0,0.00011387,120]
[406757267,1772160664618,300.0,0.00011387,120]
[406757268,1772160666865,300.0,0.00011387,120]
[406757269,1772160668144,300.0,0.00011387,120]
[406757270,1772160669860,300.0,0.00011387,120]
[406757275,1772161084395,500.0,9.501e-05,2]
[406757276,1772161152938,1000.0,9.501e-05,2]
[406757277,1772161230169,-1000.0,9.702e-05,2]
[406757278,1772161231825,-222.0,9.8e-05,2]
[406757279,1772161231847,-206.18663898,9.901e-05,2]
[406757280,1772161233797,571.81336102,9.702e-05,2]
[406757281,1772161233819,1000.0,9.702e-05,2]
[406757282,1772161233840,897.47437951,9.702e-05,2]
[406757341,1772161836858,-289.0,9.997e-05,2]
[406757342,1772161836868,-300.0,9.997e-05,2]
[406757343,1772161836877,-300.0,9.997e-05,2]
[406757344,1772161836887,-300.0,9.997e-05,2]
[406757345,1772161836896,-202.0629062,9.997e-05,2]
[406757346,1772161836906,-1200.0,9.998e-05,2]
[406757347,1772161836915,-6914.03243643,9.999e-05,2]
[406757348,1772161836924,-500.0,9.999e-05,2]
[406757349,1772161836934,-500.0,9.999e-05,2]
[406757351,1772161836944,-500.0,9.999e-05,2]
[406757352,1772161836953,-500.0,9.999e-05,2]
[406757353,1772161836963,-500.0,9.999e-05,2]
[406757354,1772161836973,-500.0,9.999e-05,2]
[406757355,1772161836982,-613.02246088,9.999e-05,2]
[406757356,1772161836991,-341.88219649,9.999e-05,2]
[406757364,1772161838319,-158.11780351,9.999e-05,2]
[406757365,1772161838328,-500.0,9.999e-05,2]
[406757366,1772161838339,-500.0,9.999e-05,2]
[406757367,1772161838349,-500.0,9.999e-05,2]
[406757368,1772161838359,-500.0,9.999e-05,2]
[406757369,1772161838367,-199.20497058,9.999e-05,2]
[406757370,1772161838381,-300.79502942,9.999e-05,2]
[406757371,1772161838390,-500.0,9.999e-05,2]
[406757372,1772161838400,-500.0,9.999e-05,2]
[406757373,1772161838412,-500.0,9.999e-05,2]
[406757374,1772161838421,-500.0,9.999e-05,2]
[406757375,1772161838431,-500.0,9.999e-05,2]
[406757376,1772161838440,-500.0,9.999e-05,2]
[406757377,1772161838449,-500.0,9.999e-05,2]
[406757378,1772161838458,-500.0,9.999e-05,2]
[406757379,1772161838469,-500.0,9.999e-05,2]
[406757380,1772161838480,-499.73101819,9.999e-05,2]
[406757381,1772161838490,-500.0,9.999e-05,2]
[406757382,1772161838499,-500.0,9.999e-05,2]
[406757383,1772161838509,-345.52284128,9.999e-05,2]
[406757448,1772161840956,-154.47715872,9.999e-05,2]
[406757450,1772161840965,-256.45572234,9.999e-05,2]
[406758022,1772161846314,-243.54427766,9.999e-05,2]
[406758024,1772161846324,-500.0,9.999e-05,2]
[406758026,1772161846333,-500.0,9.999e-05,2]
[406758028,1772161846342,-500.0,9.999e-05,2]
[406758030,1772161846351,-500.0,9.999e-05,2]
[406758032,1772161846360,-500.0,9.999e-05,2]
[406758034,1772161846370,-500.0,9.999e-05,2]
[406758036,1772161846379,-500.0,9.999e-05,2]
[406758038,1772161846388,-500.0,9.999e-05,2]
[406758040,1772161846397,-500.0,9.999e-05,2]
[406758042,1772161846406,-500.0,9.999e-05,2]
[406758044,1772161846415,-500.0,9.999e-05,2]
[406758046,1772161846424,-500.0,9.999e-05,2]
[406758048,1772161846433,-500.0,9.999e-05,2]
[406758050,1772161846442,-500.0,9.999e-05,2]
[406758052,1772161846451,-500.0,9.999e-05,2]
[406758054,1772161846460,-500.0,9.999e-05,2]
[406758056,1772161846470,-500.0,9.999e-05,2]
[406758058,1772161846482,-427.53925826,9.999e-05,2]
[406758060,1772161846491,-500.0,9.999e-05,2]
[406758062,1772161846500,-500.0,9.999e-05,2]
[406758064,1772161846509,-500.0,9.999e-05,2]
[406758066,1772161846519,-407.74165728,9.999e-05,2]
[406758068,1772161846528,-500.0,9.999e-05,2]
[406758070,1772161846537,-500.0,9.999e-05,2]
[406758071,1772161846547,-500.0,9.999e-05,2]
[406758072,1772161846556,-500.0,9.999e-05,2]
[406758073,1772161846566,-500.0,9.999e-05,2]
[406758074,1772161846574,-500.0,9.999e-05,2]
[406758075,1772161846584,-153.72323555,9.999e-05,2]
[406758076,1772161846593,-500.0,9.999e-05,2]
[406758077,1772161846602,-500.0,9.999e-05,2]
[406758078,1772161846611,-320.1938085,9.999e-05,2]
[406758079,1772161846620,-645.56638818,9.999e-05,2]
[406758080,1772161846629,-500.0,9.999e-05,2]
[406758081,1772161846638,-7397.25333623,0.0001,2]
[406758082,1772161846649,-7621.41017317,0.0001,2]
[406758778,1772162209792,210.91687167,9.48e-05,2]
[406758779,1772162790141,-298.42025008,9.801e-05,2]
[406758780,1772162823147,410.0,0.0001,30]
[406758781,1772162870101,-225.32,9.9e-05,2]
[406758782,1772162870122,-208.84948675,9.9e-05,2]
[406758783,1772162870143,-559.0,9.9e-05,2]
[406758784,1772162870165,-202.89842057,9.922e-05,2]
[406758785,1772163025199,-198.84045216,9.998e-05,2]
[406758786,1772163025227,-300.0,9.998e-05,2]
[406758824,1772163032516,-300.0,9.998e-05,2]
[406758826,1772163032526,-300.0,9.998e-05,2]
[406758828,1772163032535,-300.0,9.998e-05,2]
[406758831,1772163032544,-1200.0,9.998e-05,2]
[406758833,1772163032554,-560.0,9.998e-05,2]
[406758835,1772163032563,-10320.20259519,9.999e-05,2]
[406758836,1772163032575,-2292.70804059,9.999e-05,2]
[406758882,1772163038709,-3060.1762129,9.999e-05,2]
[406759216,1772163046769,-6604.77212734,9.999e-05,2]
[406759217,1772163046882,-7621.41360995,9.999e-05,2]
[406759218,1772163203740,500.0,9e-05,2]
[406759219,1772163292970,-533.0758723,9.997e-05,2]
[406759220,1772163292992,-300.0,9.998e-05,2]
[406759221,1772163293016,-500.0,9.998e-05,2]
[406759222,1772163293037,-500.0,9.998e-05,2]
[406759223,1772163293059,-166.9241277,9.998e-05,2]
[406759224,1772163294422,-333.0758723,9.998e-05,2]
[406759225,1772163294449,-500.0,9.998e-05,2]
[406759226,1772163294476,-500.0,9.998e-05,2]
[406759227,1772163294500,-500.0,9.998e-05,2]
[406759228,1772163294523,-166.9241277,9.998e-05,2]
[406759229,1772163295653,-233.04897412,9.998e-05,2]
[406759230,1772163295675,-500.0,9.998e-05,2]
[406759231,1772163295698,-500.0,9.998e-05,2]
[406759232,1772163295720,-645.97308134,9.998e-05,2]
[406759233,1772163295742,-120.97794454,9.998e-05,2]
[406759234,1772163297078,-379.02205546,9.998e-05,2]
[406759235,1772163297101,-500.0,9.998e-05,2]
[406759236,1772163297124,-500.0,9.998e-05,2]
[406759237,1772163297147,-500.0,9.998e-05,2]
[406759238,1772163297170,-120.97794454,9.998e-05,2]
[406759239,1772163298541,-379.02205546,9.998e-05,2]
[406759240,1772163298563,-500.0,9.998e-05,2]
[406759241,1772163298584,-500.0,9.998e-05,2]
[406759242,1772163298607,-402.07957716,9.998e-05,2]
[406759243,1772163298628,-218.89836738,9.998e-05,2]
[406759244,1772163299977,-281.10163262,9.998e-05,2]
[406759245,1772163300000,-500.0,9.998e-05,2]
[406759246,1772163300023,-194.86364312,9.998e-05,2]
[406759247,1772163300046,-1024.03472426,9.999e-05,2]
[406759248,1772163301334,-201.0,9.997e-05,2]
[406759249,1772163301358,-1799.0,9.999e-05,2]
[406759250,1772163303096,-300.0,9.997e-05,2]
[406759251,1772163303117,-300.0,9.997e-05,2]
[406759252,1772163303138,-300.0,9.997e-05,2]
[406759253,1772163303159,-1100.0,9.999e-05,2]
[406759254,1772163304398,-2000.0,9.999e-05,2]
[406759255,1772163305807,-974.0,9.998e-05,2]
[406759256,1772163305829,-676.14392531,9.999e-05,2]
[406759257,1772163305850,-349.85607469,9.999e-05,2]
[406759258,1772163307129,-2000.0,9.999e-05,2]
[406759259,1772163308525,-2000.0,9.999e-05,2]
[406759260,1772163310023,-2000.0,9.999e-05,2]
[406759261,1772163314153,-1000.0,9.999e-05,2]
[406759262,1772163398449,-1600.0,9.899e-05,2]
[406759263,1772163889617,3942.96628858,9.501e-05,2]
[406759264,1772163904765,5000.0,9.501e-05,2]
[406759265,1772163926810,5000.0,9.501e-05,2]
[406759266,1772163949094,5000.0,9.501e-05,2]
[406759267,1772163971392,2019.81953567,9.501e-05,2]
[406759269,1772164038282,3235.9567279,9.698e-05,3]
[406759271,1772164202260,160.62537283,9.327e-05,2]
[406759629,1772164240631,-7.62639264,9.6e-05,2]
[406760086,1772164245791,-206.32360736,9.6e-05,2]
[406760088,1772164245801,-258.55427785,9.6e-05,2]
[406760091,1772164245812,-295.44572215,9.6e-05,2]
[406760093,1772164245822,-227.3928465,9.608e-05,2]
[406760095,1772164245831,-283.3331,9.718e-05,2]
[406760096,1772164245842,-1200.0,9.993e-05,2]
[406760099,1772164245852,-300.0,9.994e-05,2]
[406760101,1772164245862,-300.0,9.994e-05,2]
[406760103,1772164245871,-300.0,9.994e-05,2]
[406760105,1772164245882,-300.0,9.994e-05,2]
[406760107,1772164245890,-300.0,9.994e-05,2]
[406760109,1772164245900,-4115.2419413,9.995e-05,2]
[406760111,1772164245911,-2440.95,9.995e-05,2]
[406761299,1772164293357,1346.41,0.00012,30]
[406761300,1772164293382,2500.0,0.00012,30]
[406761301,1772164293407,2500.0,0.00012,30]
[406761302,1772164293429,8133.17259629,0.00012,30]
[406761304,1772164674818,4924.8794731,8.987e-05,2]
[406761306,1772164929140,633.14301563,9.499e-05,2]
[406761307,1772164932202,1139.65742813,9.499e-05,2]
[406761308,1772164935147,2026.05765001,9.499e-05,2]
[406761309,1772164937872,3165.71507814,9.499e-05,2]
[406761310,1772164945796,4558.62971253,9.499e-05,2]
[406761311,1772164958884,1051.94771954,0.0001,3]
[406761314,1772165024137,1431.88893213,9.501e-05,2]
[406761316,1772165076097,204.96,9.698e-05,4]
[406761317,1772165125706,300.0,8.714e-05,2]
[406761318,1772165246776,500.0,9.45e-05,2]
[406761319,1772165246970,500.0,9.45e-05,2]
[406761321,1772165344294,150.0,9.45e-05,2]
[406761322,1772165344477,150.0,9.45e-05,2]
[406761323,1772165344619,150.0,9.45e-05,2]
[406761324,1772165345186,192.0306553,9.45e-05,2]
[406761325,1772165345405,150.0,9.45e-05,2]
[406761326,1772165345748,150.0,9.45e-05,2]
[406761564,1772165436312,-827.11694646,9.504e-05,2]
[406761843,1772165440291,-372.88305354,9.504e-05,2]
[406761845,1772165440301,-500.0,9.505e-05,2]
[406761847,1772165440311,-131.66817384,9.505e-05,2]
[406761850,1772165440333,-380.10363321,9.505e-05,2]
[406761852,1772165440343,-150.0,9.505e-05,2]
[406761854,1772165440352,-185.21176899,9.505e-05,2]
[406761856,1772165440362,-74.88336885,9.505e-05,2]
[406761882,1772165440880,2574.21752523,9.501e-05,2]
[406762101,1772165446259,-237.02677661,9.504e-05,2]
[406762102,1772165446270,-75.11663115,9.505e-05,2]
[406762103,1772165446279,-150.0,9.505e-05,2]
[406762104,1772165446289,-553.0,9.505e-05,2]
[406762105,1772165446298,-300.0,9.559e-05,2]
[406762106,1772165446307,-300.0,9.559e-05,2]
[406762107,1772165446316,-300.0,9.559e-05,2]
[406762108,1772165446325,-300.0,9.559e-05,2]
[406762109,1772165446334,-500.0,9.56e-05,2]
[406762110,1772165446343,-151.91164453,9.56e-05,2]
[406762111,1772165446352,-150.0,9.56e-05,2]
[406762112,1772165446363,-150.0,9.56e-05,2]
[406762113,1772165446372,-500.0,9.614e-05,2]
[406762114,1772165446380,-150.0,9.614e-05,2]
[406762115,1772165446389,-119.86454366,9.614e-05,2]
[406762116,1772165446401,-30.13545634,9.614e-05,2]
[406762117,1772165446410,-179.807824,9.656e-05,2]
[406762118,1772165446419,-380.49769547,9.669e-05,2]
[406762119,1772165446429,-211.43786686,9.669e-05,2]
[406762120,1772165446439,-260.06914372,9.669e-05,2]
[406762121,1772165446449,-300.0,9.696e-05,2]
[406762123,1772165446458,-500.0,9.697e-05,2]
[406762125,1772165446467,-502.74366849,9.697e-05,2]
[406762126,1772165446476,-500.0,9.697e-05,2]
[406762127,1772165446485,-500.0,9.697e-05,2]
[406762128,1772165446495,-500.0,9.697e-05,2]
[406762129,1772165446504,-500.0,9.697e-05,2]
[406762130,1772165446513,-500.0,9.697e-05,2]
[406762131,1772165446524,-500.0,9.697e-05,2]
[406762132,1772165446533,-500.0,9.697e-05,2]
[406762133,1772165446542,-500.0,9.697e-05,2]
[406762134,1772165446552,-500.0,9.697e-05,2]
[406762135,1772165446563,-500.0,9.697e-05,2]
[406762136,1772165446572,-500.0,9.697e-05,2]
[406762137,1772165446582,-156.72675032,9.697e-05,2]
[406762138,1772165512575,222.04,9.5e-05,2]
[406762139,1772165552869,2412.7036845,8.751e-05,2]
[406762140,1772165730716,211.43786686,9.424e-05,2]
[406762141,1772165731477,290.20460006,9.424e-05,2]
[406762142,1772165792876,-300.0,9.553e-05,2]
[406762143,1772165792898,-300.0,9.554e-05,2]
[406762144,1772165792919,-300.0,9.554e-05,2]
[406762145,1772165792940,-300.0,9.554e-05,2]
[406762146,1772165792963,-300.0,9.554e-05,2]
[406762147,1772165792985,-500.0,9.554e-05,2]
[406762148,1772165795207,-700.0,9.554e-05,2]
[406762149,1772165795230,-500.0,9.554e-05,2]
[406762150,1772165795253,-500.0,9.554e-05,2]
[406762151,1772165795275,-300.0,9.554e-05,2]
[406762152,1772165795661,-200.0,9.554e-05,2]
[406762153,1772165795693,-500.0,9.554e-05,2]
[406762154,1772165795721,-500.0,9.554e-05,2]
[406762155,1772165795747,-500.0,9.554e-05,2]
[406762156,1772165795775,-300.0,9.554e-05,2]
[406762157,1772165795998,-200.0,9.554e-05,2]
[406762158,1772165796027,-500.0,9.554e-05,2]
[406762159,1772165796053,-642.1215647,9.554e-05,2]
[406762160,1772165796078,-500.0,9.554e-05,2]
[406762161,1772165796103,-157.8784353,9.554e-05,2]
[406762162,1772165796310,-342.1215647,9.554e-05,2]
[406762163,1772165796337,-500.0,9.554e-05,2]
[406762164,1772165796360,-500.0,9.554e-05,2]
[406762165,1772165796384,-500.0,9.554e-05,2]
[406762166,1772165796412,-157.8784353,9.554e-05,2]
[406762167,1772165796665,-342.1215647,9.554e-05,2]
[406762168,1772165796690,-500.0,9.554e-05,2]
[406762169,1772165796712,-500.0,9.554e-05,2]
[406762170,1772165796739,-500.0,9.554e-05,2]
[406762171,1772165796765,-157.8784353,9.554e-05,2]
[406762172,1772165797355,-342.1215647,9.554e-05,2]
[406762173,1772165797377,-500.0,9.554e-05,2]
[406762174,1772165797401,-500.0,9.554e-05,2]
[406762175,1772165797428,-500.0,9.554e-05,2]
[406762176,1772165797452,-157.8784353,9.554e-05,2]
[406762177,1772165798086,-342.1215647,9.554e-05,2]
[406762178,1772165798110,-500.0,9.554e-05,2]
[406762179,1772165798134,-500.0,9.554e-05,2]
[406762180,1772165798158,-500.0,9.554e-05,2]
[406762181,1772165798194,-157.8784353,9.554e-05,2]
[406762182,1772165798284,-342.1215647,9.554e-05,2]
[406762183,1772165798306,-307.14121138,9.554e-05,2]